bitfinex/quotes_ETHUSD_20210701
["timestamp","ask_amount","ask_price","bid_price","bid_amount"]
[1625169914212,7.09514,2116.6,2115.2,3.5517844]
[1625169915011,7.09514,2116.6,2115.9,0.15672576]
[1625169915111,12.10514,2116.6,2115.9,0.15672576]
[1625169915212,7.09514,2116.6,2115.9,0.15672576]
[1625169915311,12.10514,2116.6,2115.9,0.15672576]
[1625169916206,0.14,2116.5,2115.9,0.15672576]
[1625169916807,7.08687,2116.2,2115.9,0.15672576]
[1625169916961,0.01,2116.6,2115.9,0.15672576]
[1625169918061,7.08593,2116.4,2115.9,0.15672576]
[1625169918309,12.09593,2116.4,2115.9,0.15672576]
[1625169918661,0.04,2116.3,2115.9,0.15672576]
[1625169919012,0.01,2116.6,2115.9,0.15672576]
[1625169919108,5.01,2116.4,2115.9,0.15672576]
[1625169919212,0.01,2116.6,2115.9,0.15672576]
[1625169920109,0.01,2116.6,2115.4,0.93334592]
[1625169920213,7.08587,2116.4,2115.3,7.08557]
[1625169920313,0.01,2116.6,2115.8,0.15672576]
[1625169920908,2.4577,2116.7,2115.8,0.15672576]
[1625169921862,2.4577,2116.7,2116.1,0.0060166]
[1625169922467,7.08507,2116.6,2116.1,0.0060166]
[1625169922805,12.09507,2116.6,2116.1,0.0060166]
[1625169922905,30.05,2116.5,2115.6,0.00601888]
[1625169923610,37.13548,2116.5,2115.6,0.00601888]
[1625169924157,7.08548,2116.5,2115.6,0.00601888]
[1625169925350,7.08548,2116.5,2116.2,0.00601698]
[1625169927205,26.25,2116.4,2115.6,6.99685628]
[1625169927402,7.08548,2116.5,2115.6,6.99685628]
[1625169927504,7.08503,2116.4,2115.6,5.01]
[1625169927604,7.08503,2116.4,2115.7,0.14]
[1625169927809,7.08503,2116.4,2115.4,7.08499]
[1625169927904,7.08503,2116.4,2115.4,3.54266]
[1625169928053,11.73403,2116.4,2115.4,3.54266]
[1625169928603,11.6900493,2116.4,2115.4,3.54266]
[1625169929606,11.6900493,2116.4,2115.4,10.62801]
[1625169929706,11.6900493,2116.4,2115.4,11.15918131]
[1625169930959,11.6900493,2116.4,2115.4,10.62801]
[1625169931260,11.6900493,2116.4,2115.4,3.54266]
[1625169932402,11.6900493,2116.4,2115.4,10.62821]
[1625169933747,11.6900493,2116.4,2115.5,7.08527]
[1625169934511,4.649,2116.4,2115.5,7.08527]
[1625169934620,1.0269,2116.5,2115.2,4.77429321]
[1625169934711,7.0907166,2116.6,2115.4,0.06]
[1625169934712,0.0060166,2116.6,2115.4,0.06]
[1625169934910,0.0060166,2116.6,2115.5,0.14]
[1625169935159,0.0060166,2116.6,2115.4,2.60362206]
[1625169936112,0.0060166,2116.6,2115.4,6.14597206]
[1625169936263,0.0060166,2116.6,2115.7,3.54219]
[1625169936363,7.0907166,2116.6,2115.8,7.08439]
[1625169936467,0.0060166,2116.6,2115.8,7.08439]
[1625169936813,0.0060166,2116.6,2115.9,0.04]
[1625169937164,0.0060166,2116.6,2115.6,12.98786]
[1625169937267,0.0060166,2116.6,2115.6,9.44585]
[1625169937865,7.0905166,2116.6,2115.6,9.44585]
[1625169938461,0.0060166,2116.6,2115.6,12.98787]
[1625169938560,0.0060166,2116.6,2115.6,3.54202]
[1625169938658,0.0060166,2116.6,2115.6,6.14564206]
[1625169938962,0.0060166,2116.6,2115.7,3.54238]
[1625169939061,1.0,2115.9,2115.7,3.54238]
[1625169939215,1.0,2115.9,2115.8,7.08393]
[1625169939561,1.0,2115.9,2115.8,7.12393]
[1625169939814,1.0,2115.9,2115.7,3.54238]
[1625169940311,1.0,2115.9,2115.7,7.0843393]
[1625169942473,1.0,2115.9,2115.8,7.08449]
[1625169943072,1.0,2115.9,2115.8,7.14449]
[1625169943627,1.0,2115.9,2115.8,7.08449]
[1625169946723,1.0,2115.9,2115.7,16.5294393]
[1625169946925,1.0,2115.9,2115.7,12.98748]
[1625169947322,7.08472,2116.4,2115.8,22.55]
[1625169947475,7.08472,2116.4,2115.7,12.98748]
[1625169947823,7.08472,2116.4,2115.7,3.54238]
[1625169949760,0.0060166,2116.6,2115.7,3.54238]
[1625169949902,0.9774,2116.9,2115.8,30.05]
[1625169950049,0.02537163,2117.2,2116.1,3.54182]
[1625169950546,0.02537163,2117.2,2116.3,7.08267]
[1625169950547,7.08267,2117.1,2116.3,7.08267]
[1625169950649,0.02537163,2117.2,2116.5,3.54103]
[1625169951293,0.00628193,2117.1,2116.5,3.54103]
[1625169951601,7.08263,2117.1,2116.5,33.59103]
[1625169951698,7.08263,2117.1,2116.5,23.99103]
[1625169951798,7.08263,2117.1,2116.5,3.54103]
[1625169952876,7.08263,2117.1,2116.2,12.24958832]
[1625169952976,7.08263,2117.1,2116.1,4.7213]
[1625169953076,0.06,2117.0,2116.1,4.7213]
[1625169953228,5.01,2117.1,2116.1,4.7213]
[1625169953479,10.65329,2117.3,2116.1,4.7213]
[1625169953634,2.49303058,2117.9,2116.2,30.29319011]
[1625169953635,0.00984444,2117.9,2116.2,30.29319011]
[1625169953782,0.00984444,2117.9,2116.9,7.07951]
[1625169953880,0.00984444,2117.9,2117.0,20.06170351]
[1625169953980,0.00984444,2117.9,2117.0,20.21170351]
[1625169954079,0.00984444,2117.9,2117.0,30.87317387]
[1625169954265,1.92e-06,2117.6,2117.1,3.60765844]
[1625169954354,4.44e-06,2117.9,2117.2,15.0]
[1625169954501,4.44e-06,2117.9,2117.5,3.6]
[1625169954603,0.00683122,2119.5,2117.6,0.15]
[1625169954699,0.00683122,2119.5,2117.6,25.49225853]
[1625169954797,0.02195612,2118.4,2117.6,28.64445853]
[1625169954900,0.01595612,2118.4,2118.1,9.43243]
[1625169955098,0.01595612,2118.4,2118.2,0.31]
[1625169955199,0.01595612,2118.4,2118.2,3.7471]
[1625169955299,0.01595612,2118.4,2118.2,0.31]
[1625169955451,11.80163122,2120.2,2118.2,0.31]
[1625169955452,11.56758734,2120.2,2118.2,0.31]
[1625169955602,0.02195188,2118.8,2118.3,0.13603513]
[1625169955700,0.02195188,2118.8,2118.3,0.08]
[1625169955901,0.02195188,2118.8,2118.2,0.15]
[1625169956577,0.02195188,2118.8,2118.2,0.26155368]
[1625169957128,9.40574188,2119.4,2118.2,0.11155368]
[1625169957239,1.4739,2118.9,2118.2,0.11155368]
[1625169957330,7.7926,2118.9,2118.2,0.11155368]
[1625169957428,0.04,2118.8,2118.2,0.11155368]
[1625169957779,0.04,2118.8,2117.7,0.53073373]
[1625169958079,0.97619471,2118.8,2116.9,10.2041]
[1625169958183,10.94876,2117.9,2116.9,10.2041]
[1625169958480,10.94876,2117.9,2116.8,0.00601415]
[1625169959246,7.08126,2117.9,2116.8,0.00601415]
[1625169959498,9.44127,2118.4,2116.8,0.00601415]
[1625169959649,11.80103,2118.9,2116.9,0.37686575]
[1625169959746,11.80103,2118.9,2117.0,3.53915]
[1625169959848,11.80103,2118.9,2117.1,0.13771865]
[1625169959947,10.6906,2119.3,2117.2,0.15]
[1625169960051,10.6906,2119.3,2117.5,54.54110398]
[1625169960151,10.6906,2119.3,2117.6,0.18159853]
[1625169960248,10.6906,2119.3,2117.6,1.44494999]
[1625169960448,7.09753392,2119.2,2117.8,12.97174]
[1625169960548,7.09753392,2119.2,2117.9,0.1330925]
[1625169960800,7.04753392,2119.2,2117.9,0.1330925]
[1625169961081,7.04753392,2119.2,2117.6,0.10427904]
[1625169961182,0.02195304,2119.6,2117.9,2.7149313]
[1625169961279,0.02195304,2119.6,2118.0,0.19247392]
[1625169961380,6.89195304,2119.6,2118.0,4.19571851]
[1625169961529,6.89195304,2119.6,2118.2,0.06345337]
[1625169961634,7.07618,2119.1,2118.2,0.07098346]
[1625169961732,7.07618,2119.1,2118.0,5.01]
[1625169961928,7.07618,2119.1,2117.8,17.9821]
[1625169962180,7.07618,2119.1,2117.9,0.14043874]
[1625169962335,7.07618,2119.1,2117.9,0.12]
[1625169962532,7.07618,2119.1,2117.8,0.00653245]
[1625169962629,7.07618,2119.1,2117.7,0.01811345]
[1625169962728,7.07618,2119.1,2117.8,2.0]
[1625169963368,12.08618,2119.1,2117.8,2.0]
[1625169963467,10.61563,2119.1,2117.8,2.0]
[1625169963616,0.08,2119.0,2117.2,31.49131547]
[1625169963895,29.10015,2119.1,2117.2,31.49131547]
[1625169963995,29.10015,2119.1,2117.2,21.00631547]
[1625169964098,7.07992,2118.1,2117.2,21.00631547]
[1625169964198,7.07992,2118.1,2117.2,10.36541547]
[1625169964298,7.07992,2118.1,2117.2,0.00601547]
[1625169964403,12.08992,2118.1,2117.2,0.00601547]
[1625169964503,7.07992,2118.1,2117.2,0.00601547]
[1625169964599,12.08992,2118.1,2117.2,0.00601547]
[1625169964852,0.04,2118.0,2117.2,0.00601547]
[1625169965153,8.5511764,2118.1,2117.7,0.00601703]
[1625169965350,30.05,2118.0,2117.2,0.00601917]
[1625169965622,11.35543,2117.6,2117.2,0.00601917]
[1625169965924,0.08,2117.5,2117.2,0.00601917]
[1625169966030,0.08,2117.5,2117.2,9.17e-06]
[1625169966637,7.08341,2117.4,2117.2,9.17e-06]
[1625169966884,12.09341,2117.4,2117.2,9.17e-06]
[1625169966975,7.08341,2117.4,2117.2,9.17e-06]
[1625169967129,0.2,2117.3,2117.2,9.17e-06]
[1625169968787,3.54282,2117.2,2116.7,1.071e-05]
[1625169968937,15.0,2117.1,2116.7,1.071e-05]
[1625169969033,19.7201,2117.1,2116.7,1.071e-05]
[1625169969134,7.08598,2117.0,2116.7,1.071e-05]
[1625169969284,7.26598,2117.0,2116.7,1.071e-05]
[1625169969435,30.05,2116.9,2115.3,0.08497726]
[1625169969537,0.13462015,2116.8,2115.3,0.08497726]
[1625169969738,0.0060271,2116.2,2115.3,0.08497726]
[1625169969834,4.3185271,2116.2,2115.2,0.00603034]
[1625169969982,4.3185271,2116.2,2115.3,0.08541016]
[1625169970086,9.3285271,2116.2,2115.3,0.08541016]
[1625169970242,4.3185271,2116.2,2115.3,0.08541016]
[1625169970837,11.4042671,2116.2,2115.3,0.08541016]
[1625169971193,0.06,2116.1,2115.3,0.08541016]
[1625169971287,30.05,2116.0,2114.6,0.72069052]
[1625169971434,30.14199209,2116.0,2114.6,0.72069052]
[1625169971689,0.00603391,2115.2,2114.4,2.52870275]
[1625169971841,0.00603391,2115.2,2114.8,7.08595]
[1625169971986,0.00603034,2115.7,2114.9,28.85]
[1625169972427,0.00603034,2115.7,2114.8,7.08595]
[1625169972530,0.00603034,2115.7,2114.8,12.09595]
[1625169972681,0.00603034,2115.7,2114.8,7.08595]
[1625169972786,0.00603034,2115.7,2114.8,12.09595]
[1625169972886,0.00603034,2115.7,2114.9,0.08]
[1625169973235,0.00603034,2115.7,2115.0,7.08544]
[1625169973833,0.00603034,2115.7,2115.2,36.06908365]
[1625169974084,0.00603034,2115.7,2115.2,44.06908365]
[1625169974239,0.00603034,2115.7,2115.4,7.0837]
[1625169974335,0.00603034,2115.7,2115.4,10.3337]
[1625169974478,0.00603034,2115.7,2115.4,23.3437]
[1625169975233,3.4e-07,2115.7,2115.4,25.87240275]
[1625169975330,3.4e-07,2115.7,2115.6,7.08266]
[1625169975432,7.44e-06,2116.2,2115.6,7.08266]
[1625169975579,7.44e-06,2116.2,2115.6,22.78136275]
[1625169975731,7.44e-06,2116.2,2115.6,12.85779811]
[1625169975831,7.44e-06,2116.2,2115.7,0.16]
[1625169975934,7.44e-06,2116.2,2115.7,1.10266226]
[1625169976130,7.44e-06,2116.2,2115.7,2.68870275]
[1625169976332,7.44e-06,2116.2,2115.8,9.60148]
[1625169976434,7.44e-06,2116.2,2115.9,0.15]
[1625169976533,7.44e-06,2116.2,2115.9,0.1]
[1625169977839,7.44e-06,2116.2,2116.0,0.04]
[1625169978139,7.44e-06,2116.2,2116.1,0.04]
[1625169978345,7.44e-06,2116.2,2115.7,19.189]
[1625169979052,0.00602418,2116.7,2115.8,2.47909536]
[1625169979053,1.162e-05,2116.7,2115.8,2.47909536]
[1625169979059,1.162e-05,2116.7,2115.9,0.03427094]
[1625169979150,1.162e-05,2116.7,2115.9,15.03427094]
[1625169979248,1.162e-05,2116.7,2115.9,15.19427094]
[1625169979348,1.162e-05,2116.7,2115.9,22.73297369]
[1625169979451,1.162e-05,2116.7,2116.0,2.32909536]
[1625169979548,1.162e-05,2116.7,2116.1,15.0]
[1625169979648,1.162e-05,2116.7,2116.1,15.05292589]
[1625169979748,1.162e-05,2116.7,2116.1,35.06292589]
[1625169979849,0.00601917,2117.7,2116.2,30.05]
[1625169979957,0.00601917,2117.7,2116.8,7.07828]
[1625169980098,0.00601917,2117.7,2116.9,45.26910448]
[1625169980203,0.00601917,2117.7,2116.9,45.41910448]
[1625169980314,0.00601917,2117.7,2116.9,60.95780723]
[1625169980399,0.00601917,2117.7,2116.9,63.44106379]
[1625169980552,0.00601917,2117.7,2116.9,73.44106379]
[1625169980651,0.00601917,2117.7,2117.0,0.16]
[1625169980755,0.00601917,2117.7,2117.1,0.05810829]
[1625169980853,0.00601917,2117.7,2117.1,0.20810829]
[1625169980954,0.00601917,2117.7,2117.4,7.07708]
[1625169981114,7.07649,2118.8,2117.5,0.15]
[1625169981279,7.07649,2118.8,2117.5,0.13673967]
[1625169981431,7.07649,2118.8,2117.6,0.16]
[1625169981631,7.07649,2118.8,2117.6,0.31]
[1625169981781,11.79896,2118.9,2117.6,0.31]
[1625169981931,11.79896,2118.9,2117.6,0.15]
[1625169982034,9.4369,2118.6,2117.6,0.15]
[1625169982431,9.4369,2118.6,2117.7,48.82891056]
[1625169982532,9.4369,2118.6,2117.7,53.83891056]
[1625169982630,11.79896,2118.9,2117.7,61.83891056]
[1625169982732,11.79896,2118.9,2117.8,0.12]
[1625169983134,7.07689,2118.6,2117.8,0.12]
[1625169983234,11.79896,2118.9,2117.8,0.12]
[1625169983825,11.79896,2118.9,2117.7,48.82891056]
[1625169984228,9.43718,2118.5,2117.7,48.82891056]
[1625169984328,7.0771,2118.6,2117.7,61.83891056]
[1625169984729,11.79896,2118.9,2117.7,61.83891056]
[1625169984983,10.517,2119.1,2117.7,62.89300516]
[1625169985181,10.517,2119.1,2117.8,0.16]
[1625169985482,10.47301703,2119.1,2117.9,30.05]
[1625169985632,10.47301703,2119.1,2118.0,0.07202166]
[1625169985786,7.07628,2118.9,2118.0,0.07202166]
[1625169985938,7.07628,2118.9,2117.7,69.01407577]
[1625169986437,7.07628,2118.9,2117.7,61.93810577]
[1625169986538,8.07628,2118.9,2117.7,61.93810577]
[1625169986786,8.07628,2118.9,2117.7,48.92810577]
[1625169986990,8.07628,2118.9,2117.7,53.93810577]
[1625169987191,8.07628,2118.9,2117.7,61.93810577]
[1625169987391,8.07628,2118.9,2117.7,48.92810577]
[1625169987691,8.07628,2118.9,2117.7,61.93810577]
[1625169988296,8.07628,2118.9,2117.7,48.92810577]
[1625169988447,8.07628,2118.9,2117.7,56.92810577]
[1625169988548,8.07628,2118.9,2117.7,61.93810577]
[1625169989249,8.07628,2118.9,2117.7,48.92810577]
[1625169990374,7.78628,2118.9,2117.7,61.93810577]
[1625169991127,7.78628,2118.9,2117.8,0.1]
[1625169991224,7.78628,2118.9,2118.7,0.00601338]
[1625169992329,12.79628,2118.9,2118.7,0.00601338]
[1625169992537,7.78628,2118.9,2118.7,0.00601338]
[1625169992635,12.79628,2118.9,2118.7,0.00601338]
[1625169992785,7.78628,2118.9,2118.7,0.00601338]
[1625169992988,30.09,2118.8,2118.7,0.00601338]
[1625169993094,33.2224,2118.8,2118.7,3.38e-06]
[1625169993187,38.2324,2118.8,2118.7,3.38e-06]
[1625169993548,3.1724,2118.8,2118.7,3.38e-06]
[1625169994393,5.05,2118.8,2118.7,3.38e-06]
[1625169994491,0.04,2118.8,2118.7,3.38e-06]
[1625169994745,7.78628,2118.9,2118.7,3.38e-06]
[1625169994986,0.00634099,2118.8,2118.7,3.38e-06]
[1625169995538,7.74262099,2118.9,2118.7,3.38e-06]
[1625169996343,7.74262099,2118.9,2118.7,0.10231383]
[1625169996602,5.01,2119.1,2118.7,4.44491383]
[1625169996694,10.3889,2120.0,2118.7,6.15781383]
[1625169996794,9.9694,2120.2,2118.7,11.18490884]
[1625169996897,9.9694,2120.2,2118.8,0.16]
[1625169996993,9.9694,2120.2,2118.8,0.16887329]
[1625169997138,0.02195304,2119.6,2118.9,0.16]
[1625169997294,0.02195304,2119.6,2118.9,0.31]
[1625169997488,0.02195304,2119.6,2119.0,3.5355976]
[1625169997587,0.02195304,2119.6,2119.0,8.5455976]
[1625169997689,0.02195304,2119.6,2119.3,7.07137]
[1625169997787,0.02195304,2119.6,2119.3,12.01297]
[1625169997887,0.02195304,2119.6,2119.3,12.16297]
[1625169998237,0.02195304,2119.6,2119.4,0.1]
[1625169998596,0.02195304,2119.6,2118.8,0.15]
[1625169998687,0.02195304,2119.6,2118.9,2.0]
[1625169999632,0.02195304,2119.6,2118.8,2.0]
[1625169999732,4.70945304,2119.6,2118.8,2.0]
[1625169999930,9.71945304,2119.6,2118.7,0.10231383]
[1625170000182,9.72628426,2119.6,2118.7,0.10231383]
[1625170000381,7.07699,2119.2,2118.7,0.10231383]
[1625170000579,12.08699,2119.2,2118.7,0.10231383]
[1625170000833,7.07699,2119.2,2118.7,0.10231383]
[1625170001083,2.5814,2119.3,2118.7,0.10231383]
[1625170001280,1.3051,2119.3,2118.7,0.10231383]
[1625170001742,0.02195304,2119.6,2118.7,0.10231383]
[1625170001992,0.02195304,2119.6,2118.5,6.67707383]
[1625170002093,0.02195304,2119.6,2118.2,0.0060151]
[1625170002344,0.08,2119.5,2118.2,0.0060151]
[1625170002496,7.07746,2119.0,2118.2,0.0060151]
[1625170002594,12.08746,2119.0,2118.2,0.0060151]
[1625170002701,16.75291317,2119.0,2118.2,0.0060151]
[1625170002794,16.67596,2119.0,2118.7,0.00601338]
[1625170002894,0.14,2118.9,2118.7,0.00601338]
[1625170003199,10.8942,2119.2,2118.7,0.00601338]
[1625170003600,31.5081,2119.3,2118.7,0.00601338]
[1625170003951,20.5112,2119.3,2118.7,0.00601338]
[1625170004152,20.5112,2119.3,2118.9,37.17185187]
[1625170004255,7.07597,2119.5,2118.9,37.17185187]
[1625170004351,7.07597,2119.5,2118.7,0.00601338]
[1625170004706,10.11428426,2119.6,2118.7,4.49201338]
[1625170004805,0.02878426,2119.6,2118.7,4.49201338]
[1625170004905,0.02878426,2119.6,2118.8,0.14]
[1625170005505,10.49508426,2120.4,2118.9,30.05]
[1625170005608,0.02194949,2119.9,2119.0,0.15]
[1625170005808,10.46703375,2120.4,2119.1,28.85]
[1625170005909,10.9855,2120.5,2119.2,34.37246]
[1625170006346,10.9855,2120.5,2119.2,7.07246]
[1625170006948,10.9855,2120.5,2119.1,0.15]
[1625170007100,21.78689,2120.5,2118.9,12.96619]
[1625170007204,21.78689,2120.5,2118.7,14.05868]
[1625170007547,21.78689,2120.5,2118.7,10.5226]
[1625170007752,21.78689,2120.5,2118.6,0.15]
[1625170007849,0.07232468,2120.4,2118.6,0.15]
[1625170008206,7.07495,2119.8,2118.6,0.15]
[1625170008376,10.11355,2119.8,2118.6,0.15]
[1625170008501,15.12355,2119.8,2118.3,10.5711]
[1625170008699,0.07659978,2119.7,2118.3,10.5711]
[1625170008999,0.08114607,2119.7,2118.2,10.7926151]
[1625170009197,10.1134,2119.8,2118.2,17.8679751]
[1625170009394,10.1134,2119.8,2118.3,0.04]
[1625170009650,3.0386,2119.8,2118.3,0.15]
[1625170009795,1.0185,2119.9,2118.3,0.15]
[1625170010455,7.07428,2120.1,2118.7,7.07418]
[1625170010608,12.08428,2120.1,2118.7,7.07418]
[1625170011501,12.08428,2120.1,2118.5,9.43235]
[1625170011694,0.12,2120.0,2118.5,9.43235]
[1625170011798,0.12,2120.0,2118.5,22.44235]
[1625170011946,18.66388,2120.3,2118.5,22.44235]
[1625170012348,6.87,2120.3,2118.5,22.44235]
[1625170012552,7.07437,2119.9,2118.6,7.07425]
[1625170012647,18.66388,2120.3,2118.6,7.07425]
[1625170012844,18.66388,2120.3,2118.6,12.23425]
[1625170012944,18.66388,2120.3,2118.6,7.22425]
[1625170013042,18.66388,2120.3,2118.6,12.23425]
[1625170013495,18.66388,2120.3,2118.7,0.1]
[1625170013598,18.66388,2120.3,2118.6,5.16]
[1625170013746,18.66388,2120.3,2118.6,0.15]
[1625170013895,18.66388,2120.3,2118.6,5.16]
[1625170013998,18.66388,2120.3,2119.8,3.0]
[1625170014296,23.67388,2120.3,2119.8,3.0]
[1625170014400,23.67388,2120.3,2119.8,0.20593533]
[1625170014501,7.07352,2120.1,2119.8,0.20593533]
[1625170015330,7.07352,2120.1,2119.9,0.00601077]
[1625170015929,27.49,2120.0,2119.9,0.00601077]
[1625170016328,0.04,2120.0,2119.9,0.00601077]
[1625170016430,7.07352,2120.1,2119.9,0.00601077]
[1625170019898,7.02352,2120.1,2119.9,0.00601077]
[1625170021402,30.05,2120.0,2119.8,0.1619461]
[1625170021608,35.62349,2119.9,2119.8,0.1619461]
[1625170021704,35.62349,2119.9,2119.8,6.1e-06]
[1625170021864,35.72349,2119.9,2119.4,0.00601212]
[1625170022063,0.2,2119.8,2119.4,0.00601212]
[1625170022161,4.3105,2119.8,2119.4,0.00601212]
[1625170022362,30.05,2119.7,2118.3,4.68324108]
[1625170022511,0.2,2119.6,2118.3,4.68324108]
[1625170022615,0.00601532,2118.9,2118.4,7.07537]
[1625170023413,0.00601532,2118.9,2118.5,15.0]
[1625170023815,0.00601532,2118.9,2118.5,14.44235]
[1625170024110,0.00601532,2118.9,2118.5,9.43235]
[1625170024270,0.00601532,2118.9,2118.3,4.68324108]
[1625170024420,0.00601532,2118.9,2118.2,21.5703]
[1625170024620,0.00601532,2118.9,2117.9,0.00601718]
[1625170025120,7.08278532,2118.9,2117.9,10.62147718]
[1625170025670,7.08278532,2118.9,2117.9,3.54436718]
[1625170026173,7.08278532,2118.9,2117.9,0.00601718]
[1625170026367,12.09278532,2118.9,2117.9,0.00601718]
[1625170026421,0.2,2118.8,2117.9,0.00601718]
[1625170026671,4.2816,2118.7,2117.9,0.00601718]
[1625170026870,9.2916,2118.7,2117.9,0.00601718]
[1625170026972,4.2816,2118.7,2117.9,0.00601718]
[1625170027072,9.2916,2118.7,2117.9,0.00601718]
[1625170027274,7.07974,2118.3,2117.9,0.00601718]
[1625170027631,12.08974,2118.3,2117.9,0.00601718]
[1625170027720,7.07974,2118.3,2117.9,0.00601718]
[1625170027821,12.08974,2118.3,2117.9,0.00601718]
[1625170028175,5.0026,2118.2,2117.9,0.00601718]
[1625170028422,17.09255,2118.2,2117.9,0.00601718]
[1625170028863,17.09255,2118.2,2117.9,7.18e-06]
[1625170029063,0.2,2118.1,2117.9,7.18e-06]
[1625170030487,7.08139,2118.0,2117.9,7.18e-06]
[1625170030571,12.09139,2118.0,2117.9,7.18e-06]
[1625170030681,12.09139,2118.0,2117.4,0.00601925]
[1625170030770,0.99999282,2117.9,2117.4,0.00601925]
[1625170031066,0.2,2117.8,2117.4,0.00601925]
[1625170031369,0.2,2117.7,2117.4,0.00601925]
[1625170031468,3.8574,2117.7,2117.4,0.00601925]
[1625170031567,8.8674,2117.7,2117.4,0.00601925]
[1625170031769,15.95055,2117.7,2117.4,0.00601925]
[1625170031969,0.2,2117.6,2117.4,0.00601925]
[1625170032423,15.2,2117.6,2117.4,9.25e-06]
[1625170032525,5.21,2117.6,2117.4,9.25e-06]
[1625170032624,0.2,2117.5,2117.4,9.25e-06]
[1625170032873,7.28366,2117.5,2117.4,9.25e-06]
[1625170033225,0.2,2117.5,2117.4,9.25e-06]
[1625170033323,9.44419,2117.8,2117.4,9.25e-06]
[1625170033979,7.08132,2117.7,2117.4,9.25e-06]
[1625170034281,0.08,2117.6,2117.4,9.25e-06]
[1625170035027,7.08292,2117.5,2117.4,9.25e-06]
[1625170037062,14.45419,2117.8,2117.4,9.25e-06]
[1625170037215,9.44419,2117.8,2117.4,3.21790925]
[1625170037316,8.08038282,2117.9,2117.4,3.21790925]
[1625170037464,0.99999282,2117.9,2117.4,3.21790925]
[1625170039819,10.43965,2118.3,2117.5,30.05]
[1625170039952,1.0,2118.3,2117.6,15.16]
[1625170040051,1.0,2118.3,2117.6,23.1676959]
[1625170040147,1.0,2118.3,2117.7,0.15]
[1625170040300,1.0,2118.3,2117.7,0.16447063]
[1625170040397,1.0,2118.3,2117.8,0.16]
[1625170040548,1.0,2118.3,2117.9,0.31]
[1625170040696,1.0,2118.3,2117.9,5.0773]
[1625170041000,0.00601532,2118.9,2118.0,30.05]
[1625170041099,0.00601532,2118.9,2118.0,38.05]
[1625170041199,0.00601532,2118.9,2118.0,38.2]
[1625170041300,0.00601532,2118.9,2118.1,0.08]
[1625170041602,0.00601532,2118.9,2118.0,38.2]
[1625170041753,0.00601532,2118.9,2118.0,8.15]
[1625170042166,0.00601532,2118.9,2118.2,0.16]
[1625170042467,0.00601532,2118.9,2118.0,0.15]
[1625170042569,0.00601532,2118.9,2118.2,37.9056587]
[1625170042919,7.08239532,2118.9,2118.2,37.9056587]
[1625170043125,0.00601532,2118.9,2118.0,0.15]
[1625170044126,9.43749,2118.6,2118.0,0.15]
[1625170044223,9.44223532,2118.9,2118.0,0.15]
[1625170045717,0.00601532,2118.9,2118.0,0.15]
[1625170046071,0.00601532,2118.9,2117.5,9.9769]
[1625170046072,4.09671718,2118.4,2117.5,9.9769]
[1625170046225,4.09671718,2118.4,2117.4,0.15]
[1625170046421,9.10671718,2118.4,2117.4,0.15]
[1625170046518,4.09671718,2118.4,2117.4,0.15]
[1625170046784,11.17508718,2118.4,2117.4,0.15]
[1625170047333,11.17508718,2118.4,2117.4,2.79600506]
[1625170047434,11.17508718,2118.4,2117.4,5.46323722]
[1625170048384,11.17508718,2118.4,2117.5,4.0]
[1625170048634,11.17508718,2118.4,2117.6,0.15]
[1625170048736,4.09671718,2118.4,2117.6,0.15]
[1625170048912,0.00601718,2118.4,2117.6,0.15]
[1625170049512,0.00601718,2118.4,2117.7,4.0]
[1625170049660,0.00601718,2118.4,2117.7,4.15]
[1625170051817,0.00601718,2118.4,2117.7,2.15]
[1625170053269,0.00601718,2118.4,2117.7,0.15]
[1625170054413,0.00601718,2118.4,2117.4,8.85202722]
[1625170055416,7.08455718,2118.4,2117.4,8.85202722]
[1625170055696,7.08455718,2118.4,2117.4,16.85202722]
[1625170055795,7.08455718,2118.4,2117.4,17.00202722]
[1625170055895,7.08455718,2118.4,2117.5,0.06]
[1625170056351,0.00601718,2118.4,2117.6,0.15]
[1625170056445,0.00601718,2118.4,2117.6,7.07765]
[1625170056546,0.00601718,2118.4,2117.7,0.15]
[1625170056699,0.00601718,2118.4,2117.8,0.08]
[1625170056796,0.00601532,2118.9,2117.9,30.05]
[1625170056898,0.00601532,2118.9,2117.9,30.2]
[1625170057296,0.00601532,2118.9,2118.0,4.1]
[1625170057950,0.00601532,2118.9,2118.1,7.07587]
[1625170058041,0.00601532,2118.9,2118.1,7.30587]
[1625170058442,0.00601532,2118.9,2118.1,7.22587]
[1625170059895,0.00601532,2118.9,2118.1,0.15]
[1625170060047,7.08268532,2118.9,2118.1,0.15]
[1625170060345,7.08268532,2118.9,2117.7,2.64600506]
[1625170060443,10.89888532,2118.9,2117.7,2.64600506]
[1625170061849,10.89888532,2118.9,2117.8,0.15]
[1625170061994,10.89888532,2118.9,2117.8,7.22669]
[1625170062294,10.89888532,2118.9,2118.2,53.96987184]
[1625170063754,3.82221532,2118.9,2118.2,53.96987184]
[1625170063854,0.00601532,2118.9,2118.2,53.96987184]
[1625170066986,7.08248532,2118.9,2118.2,53.96987184]
[1625170068037,7.08248532,2118.9,2117.9,3.53797]
[1625170069765,7.08248532,2118.9,2118.2,7.07632]
[1625170069865,7.08248532,2118.9,2118.2,10.61438]
[1625170071067,7.08248532,2118.9,2118.2,3.53806]
[1625170071176,10.61148532,2118.9,2118.0,9.43478]
[1625170071267,0.1,2118.8,2118.0,9.43478]
[1625170071981,0.1,2118.8,2118.3,40.32144884]
[1625170072080,3.53501532,2118.9,2118.0,9.43478]
[1625170072582,0.00601532,2118.9,2118.0,9.43478]
[1625170073034,7.08260532,2118.9,2118.1,3.5383]
[1625170073187,0.00601532,2118.9,2118.1,3.5383]
[1625170075077,10.13321532,2119.2,2118.1,32.4383]
[1625170075425,7.07619,2118.9,2118.1,39.51457]
[1625170076174,7.07619,2118.9,2118.1,10.61457]
[1625170077281,10.13321532,2119.2,2118.1,10.61457]
[1625170077379,7.07577,2119.1,2118.1,18.70516]
[1625170077530,10.13321532,2119.2,2118.3,3.53756]
[1625170077729,10.13321532,2119.2,2118.4,0.15]